[Event "Late-Titled-Tuesday-Blitz-March-26-2024"]
[Site "Chess.com"]
[Date "2024.03.26"]
[Round "6"]
[White "secretsuperstar7"]
[Black "RianKapriaga"]
[Result "1-0"]
[WhiteElo "2508"]
[BlackElo "2345"]
[TimeControl "180+1"]
[EndTime "15:07:46 PDT"]
[Termination "secretsuperstar7 won by resignation"]

1. c4 {[%clk 0:02:55.8]} 1... Nf6 {[%clk 0:02:58.9]} 2. Nc3 {[%clk 0:02:56.1]}
2... c6 {[%clk 0:02:56.9]} 3. e4 {[%clk 0:02:54.1]} 3... d5 {[%clk 0:02:57]} 4.
e5 {[%clk 0:02:51.9]} 4... Ng8 {[%clk 0:02:48.5]} 5. cxd5 {[%clk 0:02:48.9]}
5... cxd5 {[%clk 0:02:49.4]} 6. d4 {[%clk 0:02:49.2]} 6... Nc6 {[%clk
0:02:48.8]} 7. Nf3 {[%clk 0:02:49.1]} 7... Bg4 {[%clk 0:02:47.3]} 8. Be2 {[%clk
0:02:49.1]} 8... e6 {[%clk 0:02:45]} 9. O-O {[%clk 0:02:48.9]} 9... Nge7 {[%clk
0:02:43.4]} 10. Bg5 {[%clk 0:02:42]} 10... Qb6 {[%clk 0:02:42.3]} 11. Na4 {[%clk
0:02:25.3]} 11... Qc7 {[%clk 0:02:37.9]} 12. Rc1 {[%clk 0:02:21.7]} 12... Nf5
{[%clk 0:02:33.7]} 13. a3 {[%clk 0:02:15.9]} 13... Rc8 {[%clk 0:02:29.2]} 14. b4
{[%clk 0:02:15.2]} 14... a6 {[%clk 0:02:23.3]} 15. h3 {[%clk 0:01:57.9]} 15...
Bxf3 {[%clk 0:02:20.6]} 16. Bxf3 {[%clk 0:01:58.8]} 16... Nfxd4 {[%clk
0:02:16.6]} 17. Bh5 {[%clk 0:01:46.4]} 17... h6 {[%clk 0:02:11.9]} 18. Be3
{[%clk 0:01:44]} 18... Nf5 {[%clk 0:01:58.6]} 19. Bb6 {[%clk 0:01:19]} 19... Qd7
{[%clk 0:01:57.8]} 20. Bg4 {[%clk 0:01:11.4]} 20... g6 {[%clk 0:01:55.2]} 21.
Re1 {[%clk 0:00:57.3]} 21... Be7 {[%clk 0:01:52.9]} 22. Bc5 {[%clk 0:00:48.6]}
22... h5 {[%clk 0:01:43.9]} 23. Bxf5 {[%clk 0:00:46.7]} 23... gxf5 {[%clk
0:01:43]} 24. Nb6 {[%clk 0:00:46.4]} 24... Qd8 {[%clk 0:01:39.5]} 25. Nxc8
{[%clk 0:00:46.5]} 25... Qxc8 {[%clk 0:01:40.4]} 26. Bxe7 {[%clk 0:00:45.8]}
26... Kxe7 {[%clk 0:01:40.3]} 27. a4 {[%clk 0:00:45.4]} 27... Qb8 {[%clk
0:01:32.3]} 28. b5 {[%clk 0:00:45.2]} 28... axb5 {[%clk 0:01:30.9]} 29. axb5
{[%clk 0:00:45.3]} 29... Nxe5 {[%clk 0:01:29.3]} 30. Qd4 {[%clk 0:00:43.1]}
30... Nd7 {[%clk 0:01:18.2]} 31. Qxd5 {[%clk 0:00:34.1]} 31... Rc8 {[%clk
0:01:14.5]} 32. Qf3 {[%clk 0:00:27]} 32... h4 {[%clk 0:01:05.3]} 33. Rxc8 {[%clk
0:00:21.9]} 33... Qxc8 {[%clk 0:01:04.2]} 34. Qxf5 {[%clk 0:00:22.1]} 34... Qc3
{[%clk 0:00:59]} 35. Qg5+ {[%clk 0:00:20.9]} 35... Qf6 {[%clk 0:00:54.1]} 36.
Qxf6+ {[%clk 0:00:19.1]} 36... Nxf6 {[%clk 0:00:54.1]} 37. Rc1 {[%clk
0:00:19.1]} 37... Nd5 {[%clk 0:00:53.6]} 38. Rc4 {[%clk 0:00:16]} 38... Kd6
{[%clk 0:00:51.4]} 39. Rxh4 {[%clk 0:00:15.8]} 39... Kc5 {[%clk 0:00:51.8]} 40.
Rh7 {[%clk 0:00:15.4]} 40... Kxb5 {[%clk 0:00:50.1]} 41. Rxf7 {[%clk 0:00:15.5]}
41... Kc6 {[%clk 0:00:51]} 42. h4 {[%clk 0:00:15.2]} 42... b5 {[%clk 0:00:45]}
43. h5 {[%clk 0:00:14.7]} 43... b4 {[%clk 0:00:45.9]} 44. Rf3 {[%clk 0:00:14.3]}
44... b3 {[%clk 0:00:46.8]} 45. Rxb3 {[%clk 0:00:13.8]} 45... Kd6 {[%clk
0:00:46.7]} 46. h6 {[%clk 0:00:13.7]} 46... Ke7 {[%clk 0:00:47.6]} 47. h7 {[%clk
0:00:13.6]} 47... Nf4 {[%clk 0:00:47.2]} 48. h8=Q {[%clk 0:00:12.8]} 48... Ne2+
{[%clk 0:00:48.1]} 49. Kf1 {[%clk 0:00:13]} 49... Nf4 {[%clk 0:00:48.5]} 50.
Rb7+ {[%clk 0:00:12.4]} 50... Kd6 {[%clk 0:00:48.3]} 51. Qb8+ {[%clk 0:00:12.5]}
51... Kd5 {[%clk 0:00:48.3]} 52. Qxf4 {[%clk 0:00:12.6]} 52... e5 {[%clk
0:00:49.2]} 53. Rb5+ {[%clk 0:00:12.7]} 53... Kc6 {[%clk 0:00:50.1]} 54. Qxe5
{[%clk 0:00:11]} 54... Kd7 {[%clk 0:00:49.5]} 55. Rb7+ {[%clk 0:00:11.1]} 55...
Kc6 {[%clk 0:00:50.4]} 56. Qc7+ {[%clk 0:00:10.8]} 56... Kd5 {[%clk 0:00:51.3]}
57. Rb5+ {[%clk 0:00:10.4]} 57... Ke6 {[%clk 0:00:52.2]} 58. Qc6+ {[%clk
0:00:10.5]} 58... Ke7 {[%clk 0:00:50.7]} 59. Rb7+ {[%clk 0:00:11.2]} 1-0

[Event "Late-Titled-Tuesday-Blitz-March-26-2024"]
[Site "Chess.com"]
[Date "2024.03.26"]
[Round "6"]
[White "jstopa4"]
[Black "hellokostya"]
[Result "0-1"]
[WhiteElo "2730"]
[BlackElo "2600"]
[TimeControl "180+1"]
[EndTime "15:07:47 PDT"]
[Termination "hellokostya won by resignation"]

1. d4 {[%clk 0:02:53]} 1... Nf6 {[%clk 0:02:59.8]} 2. c4 {[%clk 0:02:52.1]} 2...
g6 {[%clk 0:02:59.9]} 3. f3 {[%clk 0:02:52]} 3... Bg7 {[%clk 0:02:59.5]} 4. e4
{[%clk 0:02:52.1]} 4... d6 {[%clk 0:02:59.7]} 5. Ne2 {[%clk 0:02:52.4]} 5... O-O
{[%clk 0:02:59]} 6. Nbc3 {[%clk 0:02:52.7]} 6... c5 {[%clk 0:02:58.5]} 7. d5
{[%clk 0:02:52.5]} 7... e6 {[%clk 0:02:58.7]} 8. Ng3 {[%clk 0:02:51.9]} 8...
exd5 {[%clk 0:02:57.1]} 9. cxd5 {[%clk 0:02:52.2]} 9... a6 {[%clk 0:02:54.8]}
10. a4 {[%clk 0:02:51]} 10... Nbd7 {[%clk 0:02:54.1]} 11. Be2 {[%clk 0:02:46.6]}
11... Qc7 {[%clk 0:02:52.6]} 12. O-O {[%clk 0:02:44.7]} 12... Rb8 {[%clk
0:02:52.5]} 13. Nh1 {[%clk 0:02:37.2]} 13... c4 {[%clk 0:02:48]} 14. Nf2 {[%clk
0:02:31.8]} 14... b5 {[%clk 0:02:47.4]} 15. axb5 {[%clk 0:02:29.2]} 15... axb5
{[%clk 0:02:48.3]} 16. Qc2 {[%clk 0:02:11]} 16... Nc5 {[%clk 0:02:31.5]} 17. Be3
{[%clk 0:02:10.4]} 17... Bd7 {[%clk 0:02:16.9]} 18. f4 {[%clk 0:02:00.9]} 18...
Rfe8 {[%clk 0:02:16.2]} 19. Bf3 {[%clk 0:01:28.7]} 19... b4 {[%clk 0:02:00.3]}
20. Ncd1 {[%clk 0:01:28.6]} 20... Bb5 {[%clk 0:01:17.1]} 21. Re1 {[%clk
0:01:21.8]} 21... b3 {[%clk 0:01:13.1]} 22. Qc1 {[%clk 0:01:17.3]} 22... Ncxe4
{[%clk 0:01:06.5]} 23. Nxe4 {[%clk 0:01:00.3]} 23... Nxe4 {[%clk 0:01:07.4]} 24.
Ra7 {[%clk 0:00:55.6]} 24... Rb7 {[%clk 0:01:04.7]} 25. Rxb7 {[%clk 0:00:52]}
25... Qxb7 {[%clk 0:01:05.6]} 26. Bxe4 {[%clk 0:00:50]} 26... Rxe4 {[%clk
0:01:06.5]} 27. Nc3 {[%clk 0:00:50.4]} 27... Bxc3 {[%clk 0:00:58.1]} 28. Qxc3
{[%clk 0:00:50]} 28... Qxd5 {[%clk 0:00:58.8]} 29. Ra1 {[%clk 0:00:45.7]} 29...
Bc6 {[%clk 0:00:46.6]} 30. Ra5 {[%clk 0:00:27.3]} 30... Qd1+ {[%clk 0:00:45.3]}
31. Kf2 {[%clk 0:00:27.8]} 31... Qc2+ {[%clk 0:00:42.8]} 32. Qxc2 {[%clk
0:00:27.6]} 32... bxc2 {[%clk 0:00:43.7]} 33. Ra1 {[%clk 0:00:27.4]} 33... d5
{[%clk 0:00:33.9]} 34. Bc5 {[%clk 0:00:27.2]} 34... Rxf4+ {[%clk 0:00:32.1]} 35.
Ke3 {[%clk 0:00:26.5]} 35... Re4+ {[%clk 0:00:28.4]} 36. Kd2 {[%clk 0:00:26.9]}
36... Kg7 {[%clk 0:00:27.4]} 37. Rf1 {[%clk 0:00:20.3]} 37... d4 {[%clk
0:00:25.7]} 38. Kxc2 {[%clk 0:00:18.5]} 38... Re2+ {[%clk 0:00:25.4]} 39. Kc1
{[%clk 0:00:18]} 39... d3 {[%clk 0:00:16.2]} 40. Bd4+ {[%clk 0:00:18]} 40... Kf8
{[%clk 0:00:16.6]} 41. Rf2 {[%clk 0:00:18.3]} 41... Rxf2 {[%clk 0:00:16]} 42.
Bxf2 {[%clk 0:00:18.3]} 42... Bxg2 {[%clk 0:00:16.8]} 43. Kd2 {[%clk 0:00:18.6]}
43... Ke7 {[%clk 0:00:14.8]} 44. Kc3 {[%clk 0:00:18.5]} 44... Bd5 {[%clk
0:00:15.1]} 45. Be3 {[%clk 0:00:18.8]} 45... Ke6 {[%clk 0:00:14.8]} 46. Kd4
{[%clk 0:00:19.3]} 46... f6 {[%clk 0:00:12.4]} 47. h4 {[%clk 0:00:19.5]} 47...
h5 {[%clk 0:00:09.9]} 48. Bd2 {[%clk 0:00:19.5]} 48... g5 {[%clk 0:00:04.8]} 49.
hxg5 {[%clk 0:00:19.3]} 49... fxg5 {[%clk 0:00:05.7]} 50. Bxg5 {[%clk
0:00:19.8]} 50... h4 {[%clk 0:00:06.3]} 51. Bxh4 {[%clk 0:00:20.1]} 51... d2
{[%clk 0:00:06.2]} 0-1

[Event "Late-Titled-Tuesday-Blitz-March-26-2024"]
[Site "Chess.com"]
[Date "2024.03.26"]
[Round "6"]
[White "DinaBelenkaya"]
[Black "stolencandy13"]
[Result "0-1"]
[WhiteElo "2498"]
[BlackElo "2664"]
[TimeControl "180+1"]
[EndTime "15:07:49 PDT"]
[Termination "stolencandy13 won by resignation"]

1. Nf3 {[%clk 0:02:59.8]} 1... d5 {[%clk 0:03:00]} 2. g3 {[%clk 0:02:59.6]} 2...
Nf6 {[%clk 0:03:00]} 3. Bg2 {[%clk 0:02:56.5]} 3... Bf5 {[%clk 0:03:00.1]} 4. d3
{[%clk 0:02:55.2]} 4... e6 {[%clk 0:03:00.8]} 5. Nbd2 {[%clk 0:02:55.3]} 5...
Nc6 {[%clk 0:02:57.6]} 6. O-O {[%clk 0:02:55.5]} 6... Qd7 {[%clk 0:02:57.7]} 7.
Qe1 {[%clk 0:02:56]} 7... O-O-O {[%clk 0:02:54.8]} 8. c3 {[%clk 0:02:53.4]} 8...
h5 {[%clk 0:02:53]} 9. h4 {[%clk 0:02:50.6]} 9... e5 {[%clk 0:02:45.3]} 10. Ng5
{[%clk 0:02:50.4]} 10... Ng4 {[%clk 0:02:38.5]} 11. e4 {[%clk 0:02:30.6]} 11...
dxe4 {[%clk 0:02:27.1]} 12. dxe4 {[%clk 0:02:30.1]} 12... Be6 {[%clk 0:01:48.2]}
13. Nxe6 {[%clk 0:02:29.8]} 13... fxe6 {[%clk 0:01:45.7]} 14. Nc4 {[%clk
0:02:27.3]} 14... Qd3 {[%clk 0:01:33.9]} 15. Ne3 {[%clk 0:01:53.9]} 15... Bc5
{[%clk 0:01:32.3]} 16. Bh3 {[%clk 0:01:39.1]} 16... Kb8 {[%clk 0:01:19.4]} 17.
Kg2 {[%clk 0:01:31.5]} 17... Qxe4+ {[%clk 0:01:12.6]} 18. Kg1 {[%clk 0:01:29.3]}
18... Qd3 {[%clk 0:01:09.4]} 19. Kh1 {[%clk 0:01:20.9]} 19... Rhf8 {[%clk
0:01:03.8]} 20. Nxg4 {[%clk 0:01:10.7]} 20... hxg4 {[%clk 0:01:03.4]} 21. Bxg4
{[%clk 0:01:04.2]} 21... Bxf2 {[%clk 0:00:46.7]} 22. Rxf2 {[%clk 0:01:01]} 22...
Qxg3 {[%clk 0:00:46.7]} 23. Be3 {[%clk 0:00:28.4]} 23... Qxh4+ {[%clk
0:00:37.7]} 24. Kg1 {[%clk 0:00:15.9]} 24... Qxg4+ {[%clk 0:00:37.7]} 25. Rg2
{[%clk 0:00:16.4]} 25... Qf3 {[%clk 0:00:27.3]} 26. Qe2 {[%clk 0:00:16.1]} 26...
Qxe2 {[%clk 0:00:26.9]} 27. Rxe2 {[%clk 0:00:16.4]} 27... Rf5 {[%clk 0:00:23.9]}
28. Kg2 {[%clk 0:00:16.4]} 28... b6 {[%clk 0:00:23.4]} 29. Rh1 {[%clk
0:00:16.1]} 29... Ne7 {[%clk 0:00:23.2]} 30. Rh7 {[%clk 0:00:16]} 30... Rg8
{[%clk 0:00:20.2]} 31. Bf2 {[%clk 0:00:15.4]} 31... Nd5 {[%clk 0:00:20.2]} 32.
Rd2 {[%clk 0:00:13.3]} 32... Kb7 {[%clk 0:00:19.7]} 33. Bg3 {[%clk 0:00:13.2]}
33... Nf6 {[%clk 0:00:19]} 34. Rh4 {[%clk 0:00:12.8]} 34... Rg5 {[%clk 0:00:18]}
35. Kf2 {[%clk 0:00:09.6]} 35... Rf8 {[%clk 0:00:15.8]} 36. Kg2 {[%clk 0:00:06]}
36... Rg4 {[%clk 0:00:13.9]} 37. Rxg4 {[%clk 0:00:06]} 37... Nxg4 {[%clk
0:00:14.8]} 38. Re2 {[%clk 0:00:06.3]} 38... Rf5 {[%clk 0:00:13.9]} 39. Kh3
{[%clk 0:00:06.7]} 39... Nf6 {[%clk 0:00:13.9]} 40. Bxe5 {[%clk 0:00:07]} 40...
Kc6 {[%clk 0:00:12.4]} 41. Bg3 {[%clk 0:00:06.5]} 41... Kd7 {[%clk 0:00:12.3]}
42. Be1 {[%clk 0:00:06.8]} 42... Nd5 {[%clk 0:00:12.1]} 43. Kg4 {[%clk
0:00:06.6]} 43... Rf1 {[%clk 0:00:11]} 44. Kg5 {[%clk 0:00:05.7]} 44... Rg1+
{[%clk 0:00:10.7]} 45. Kh4 {[%clk 0:00:04.4]} 45... g5+ {[%clk 0:00:10.3]} 46.
Kh5 {[%clk 0:00:02.5]} 46... Nf4+ {[%clk 0:00:10.9]} 47. Kh6 {[%clk 0:00:02.4]}
47... Nxe2 {[%clk 0:00:11.8]} 0-1

[Event "Late-Titled-Tuesday-Blitz-March-26-2024"]
[Site "Chess.com"]
[Date "2024.03.26"]
[Round "6"]
[White "MoldyTofu"]
[Black "SuanFernandes"]
[Result "0-1"]
[WhiteElo "2049"]
[BlackElo "2297"]
[TimeControl "180+1"]
[EndTime "15:07:50 PDT"]
[Termination "SuanFernandes won by resignation"]

1. b3 {[%clk 0:02:58.2]} 1... d5 {[%clk 0:02:59.2]} 2. Bb2 {[%clk 0:02:59.1]}
2... Nf6 {[%clk 0:03:00.1]} 3. e3 {[%clk 0:02:59.6]} 3... c5 {[%clk 0:02:59.7]}
4. d4 {[%clk 0:03:00.5]} 4... Nc6 {[%clk 0:02:59.8]} 5. Nf3 {[%clk 0:03:00.5]}
5... cxd4 {[%clk 0:02:55.5]} 6. Nxd4 {[%clk 0:02:56.1]} 6... Bg4 {[%clk
0:02:28.9]} 7. Be2 {[%clk 0:02:51.2]} 7... Bxe2 {[%clk 0:02:29]} 8. Qxe2 {[%clk
0:02:48.3]} 8... e6 {[%clk 0:02:26.8]} 9. O-O {[%clk 0:02:44.4]} 9... Bd6 {[%clk
0:02:26.4]} 10. Qb5 {[%clk 0:02:40.2]} 10... O-O {[%clk 0:02:22]} 11. Nd2 {[%clk
0:02:17.3]} 11... Qc7 {[%clk 0:01:50.6]} 12. N2f3 {[%clk 0:01:55.2]} 12... Ne4
{[%clk 0:01:47.5]} 13. Nxc6 {[%clk 0:01:50.3]} 13... bxc6 {[%clk 0:01:47.5]} 14.
Qd3 {[%clk 0:01:49.3]} 14... a5 {[%clk 0:01:37.1]} 15. c4 {[%clk 0:01:48.2]}
15... a4 {[%clk 0:01:36.3]} 16. Rac1 {[%clk 0:01:41.7]} 16... Qe7 {[%clk
0:01:32.9]} 17. cxd5 {[%clk 0:01:21.6]} 17... cxd5 {[%clk 0:01:33.8]} 18. Nd2
{[%clk 0:01:17.5]} 18... a3 {[%clk 0:00:30.1]} 19. Ba1 {[%clk 0:01:08]} 19...
Nf6 {[%clk 0:00:19]} 20. Nf3 {[%clk 0:01:03.2]} 20... e5 {[%clk 0:00:18.6]} 21.
Qd2 {[%clk 0:00:55.4]} 21... Rfd8 {[%clk 0:00:17.7]} 22. Rfd1 {[%clk 0:00:54.2]}
22... Bb4 {[%clk 0:00:17.6]} 23. Qe2 {[%clk 0:00:54.7]} 23... Bd6 {[%clk
0:00:13.8]} 24. h3 {[%clk 0:00:49]} 24... h6 {[%clk 0:00:14.1]} 25. Qd2 {[%clk
0:00:42.5]} 25... Rac8 {[%clk 0:00:10.6]} 26. Rxc8 {[%clk 0:00:37]} 26... Rxc8
{[%clk 0:00:11.5]} 27. Rc1 {[%clk 0:00:35.4]} 27... Rxc1+ {[%clk 0:00:09.4]} 28.
Qxc1 {[%clk 0:00:36.3]} 28... Ne4 {[%clk 0:00:09.5]} 29. Qd1 {[%clk 0:00:33.4]}
29... Qe6 {[%clk 0:00:08.4]} 30. Nd2 {[%clk 0:00:30]} 30... Ng5 {[%clk
0:00:07.9]} 31. Nf3 {[%clk 0:00:28.6]} 31... Ne4 {[%clk 0:00:07.3]} 32. Nd2
{[%clk 0:00:28.4]} 32... Nc5 {[%clk 0:00:07.9]} 33. Nb1 {[%clk 0:00:25.7]} 33...
Nd7 {[%clk 0:00:06.4]} 34. Nc3 {[%clk 0:00:25.7]} 34... Nb6 {[%clk 0:00:05.7]}
35. Nb5 {[%clk 0:00:25.7]} 35... Bb4 {[%clk 0:00:05.7]} 36. Qc2 {[%clk
0:00:22.4]} 36... f6 {[%clk 0:00:05.2]} 37. Qc7 {[%clk 0:00:20.2]} 37... Kh7
{[%clk 0:00:05.1]} 38. Qa7 {[%clk 0:00:18.5]} 38... Qc6 {[%clk 0:00:04.1]} 39.
Qa6 {[%clk 0:00:17.1]} 39... Qc1+ {[%clk 0:00:03.5]} 40. Kh2 {[%clk 0:00:17.6]}
40... Qxa1 {[%clk 0:00:04.2]} 41. Qxb6 {[%clk 0:00:18.1]} 41... Qxa2 {[%clk
0:00:05]} 42. Nc7 {[%clk 0:00:15.5]} 42... Qxb3 {[%clk 0:00:05.1]} 43. Nxd5
{[%clk 0:00:14.3]} 43... Qxd5 {[%clk 0:00:05.4]} 44. Qxb4 {[%clk 0:00:14.8]}
44... a2 {[%clk 0:00:06.3]} 45. Qc3 {[%clk 0:00:14]} 45... Qa8 {[%clk
0:00:04.5]} 46. Qc2+ {[%clk 0:00:14.1]} 46... Kh8 {[%clk 0:00:04.3]} 47. Qg6
{[%clk 0:00:14]} 0-1

[Event "Late-Titled-Tuesday-Blitz-March-26-2024"]
[Site "Chess.com"]
[Date "2024.03.26"]
[Round "6"]
[White "ahkashefi2800"]
[Black "Agibileg"]
[Result "1-0"]
[WhiteElo "2605"]
[BlackElo "2754"]
[TimeControl "180+1"]
[EndTime "15:07:54 PDT"]
[Termination "ahkashefi2800 won by checkmate"]

1. d4 {[%clk 0:02:42.7]} 1... Nf6 {[%clk 0:02:58]} 2. Nf3 {[%clk 0:02:34.2]}
2... g6 {[%clk 0:02:55.9]} 3. g3 {[%clk 0:02:33.2]} 3... Bg7 {[%clk 0:02:55.2]}
4. Bg2 {[%clk 0:02:30.6]} 4... O-O {[%clk 0:02:56.1]} 5. O-O {[%clk 0:02:25.4]}
5... d6 {[%clk 0:02:56.6]} 6. b3 {[%clk 0:02:22.9]} 6... Nc6 {[%clk 0:02:53.6]}
7. Bb2 {[%clk 0:02:18.8]} 7... e5 {[%clk 0:02:54.1]} 8. dxe5 {[%clk 0:02:16.1]}
8... Ng4 {[%clk 0:02:54.1]} 9. c4 {[%clk 0:02:15.6]} 9... Ngxe5 {[%clk
0:02:53.9]} 10. Qc1 {[%clk 0:02:15.4]} 10... Nxf3+ {[%clk 0:02:40]} 11. Bxf3
{[%clk 0:02:14.7]} 11... Bh3 {[%clk 0:02:39.3]} 12. Rd1 {[%clk 0:02:12.4]} 12...
Rb8 {[%clk 0:02:36.3]} 13. Bxg7 {[%clk 0:02:10]} 13... Kxg7 {[%clk 0:02:37.2]}
14. Qc3+ {[%clk 0:02:09.9]} 14... Ne5 {[%clk 0:02:35.8]} 15. Nd2 {[%clk
0:02:09]} 15... Qf6 {[%clk 0:02:35.4]} 16. Bg2 {[%clk 0:02:06]} 16... Bxg2
{[%clk 0:02:28.5]} 17. Kxg2 {[%clk 0:02:06.4]} 17... Nd7 {[%clk 0:02:20.6]} 18.
Qxf6+ {[%clk 0:02:05.4]} 18... Nxf6 {[%clk 0:02:21.5]} 19. e3 {[%clk 0:02:05.9]}
19... a5 {[%clk 0:02:19.7]} 20. a3 {[%clk 0:02:05.7]} 20... Rfe8 {[%clk
0:02:19.6]} 21. b4 {[%clk 0:02:05.7]} 21... axb4 {[%clk 0:02:19.3]} 22. axb4
{[%clk 0:02:06]} 22... Ra8 {[%clk 0:02:20.2]} 23. Kf3 {[%clk 0:02:02.2]} 23...
Nd7 {[%clk 0:02:19.8]} 24. Ke2 {[%clk 0:02:01.1]} 24... h5 {[%clk 0:02:16.3]}
25. h4 {[%clk 0:02:01.1]} 25... Ne5 {[%clk 0:02:14.8]} 26. Rdc1 {[%clk
0:02:01.2]} 26... c6 {[%clk 0:02:10.5]} 27. b5 {[%clk 0:01:52.6]} 27... Kf6
{[%clk 0:02:08.5]} 28. Rd1 {[%clk 0:01:48.2]} 28... Ke7 {[%clk 0:02:07.5]} 29.
bxc6 {[%clk 0:01:47.2]} 29... bxc6 {[%clk 0:02:06.2]} 30. Rdb1 {[%clk
0:01:47.1]} 30... Reb8 {[%clk 0:01:54.1]} 31. Rxa8 {[%clk 0:01:44.1]} 31... Rxa8
{[%clk 0:01:54.1]} 32. f4 {[%clk 0:01:44.3]} 32... Nd7 {[%clk 0:01:39.8]} 33.
Rb7 {[%clk 0:01:43.5]} 33... Ra2 {[%clk 0:01:37.4]} 34. Rc7 {[%clk 0:01:43.5]}
34... Ke6 {[%clk 0:01:31.3]} 35. Rxc6 {[%clk 0:01:36.6]} 35... Nc5 {[%clk
0:01:31.5]} 36. Kd1 {[%clk 0:01:36.2]} 36... f5 {[%clk 0:01:05.4]} 37. Rc7
{[%clk 0:01:32.3]} 37... Ra3 {[%clk 0:00:59.6]} 38. Ke2 {[%clk 0:01:26.3]} 38...
Ra2 {[%clk 0:00:59.3]} 39. Kd1 {[%clk 0:01:15.6]} 39... Ra1+ {[%clk 0:00:58.5]}
40. Kc2 {[%clk 0:01:09.3]} 40... Rg1 {[%clk 0:00:55.1]} 41. Nf3 {[%clk
0:01:09.4]} 41... Rg2+ {[%clk 0:00:51]} 42. Kd1 {[%clk 0:01:09.5]} 42... Ne4
{[%clk 0:00:47.8]} 43. Nd4+ {[%clk 0:00:52.8]} 43... Kf6 {[%clk 0:00:46.9]} 44.
Nc6 {[%clk 0:00:53.2]} 44... Rg1+ {[%clk 0:00:12.5]} 45. Kc2 {[%clk 0:00:51.3]}
45... Rg2+ {[%clk 0:00:12.4]} 46. Kc1 {[%clk 0:00:51.5]} 46... d5 {[%clk
0:00:05.9]} 47. Nd8 {[%clk 0:00:47.7]} 47... Nd6 {[%clk 0:00:02.9]} 48. c5
{[%clk 0:00:47.5]} 48... Rg1+ {[%clk 0:00:02.8]} 49. Kc2 {[%clk 0:00:46.8]}
49... Rg2+ {[%clk 0:00:03]} 50. Kd3 {[%clk 0:00:46.4]} 50... Ne4 {[%clk
0:00:01]} 51. Rf7# {[%clk 0:00:45.6]} 1-0

[Event "Late-Titled-Tuesday-Blitz-March-26-2024"]
[Site "Chess.com"]
[Date "2024.03.26"]
[Round "6"]
[White "stasOR4ik"]
[Black "EgorYakovlev"]
[Result "0-1"]
[WhiteElo "2431"]
[BlackElo "2677"]
[TimeControl "180+1"]
[EndTime "15:07:58 PDT"]
[Termination "EgorYakovlev won by resignation"]

1. c4 {[%clk 0:01:35.5]} 1... g6 {[%clk 0:02:57.9]} 2. Nc3 {[%clk 0:01:35.2]}
2... Bg7 {[%clk 0:02:58.4]} 3. g3 {[%clk 0:01:36.1]} 3... e5 {[%clk 0:02:56]} 4.
Bg2 {[%clk 0:01:36.7]} 4... c5 {[%clk 0:02:56]} 5. e4 {[%clk 0:01:36]} 5... Nc6
{[%clk 0:02:56.5]} 6. d3 {[%clk 0:01:36.4]} 6... d6 {[%clk 0:02:57.1]} 7. Nge2
{[%clk 0:01:34.4]} 7... Nge7 {[%clk 0:02:57.7]} 8. h4 {[%clk 0:01:34.3]} 8... h5
{[%clk 0:02:54.1]} 9. Bg5 {[%clk 0:01:34.1]} 9... f6 {[%clk 0:02:51]} 10. Be3
{[%clk 0:01:34]} 10... Be6 {[%clk 0:02:49.7]} 11. O-O {[%clk 0:01:33.4]} 11...
Qd7 {[%clk 0:02:49.7]} 12. Kh2 {[%clk 0:01:33]} 12... g5 {[%clk 0:02:35.1]} 13.
f4 {[%clk 0:01:32.4]} 13... exf4 {[%clk 0:02:28.9]} 14. gxf4 {[%clk 0:01:32.3]}
14... gxh4 {[%clk 0:02:27]} 15. f5 {[%clk 0:01:24.8]} 15... Bf7 {[%clk
0:02:26.9]} 16. Nf4 {[%clk 0:01:23]} 16... Ne5 {[%clk 0:02:25.8]} 17. Bh3 {[%clk
0:01:19.7]} 17... Bh6 {[%clk 0:02:20.9]} 18. Nxh5 {[%clk 0:01:05.1]} 18... Bxh5
{[%clk 0:01:58.8]} 19. Qxh5+ {[%clk 0:01:04.1]} 19... Nf7 {[%clk 0:01:59.5]} 20.
Bxh6 {[%clk 0:00:47.6]} 20... Rxh6 {[%clk 0:02:00.4]} 21. Qe2 {[%clk 0:00:41]}
21... Ne5 {[%clk 0:01:45.3]} 22. Rg1 {[%clk 0:00:38.4]} 22... O-O-O {[%clk
0:01:44.4]} 23. Rg7 {[%clk 0:00:35]} 23... Re8 {[%clk 0:01:10.5]} 24. Nd5 {[%clk
0:00:30]} 24... Qd8 {[%clk 0:01:11]} 25. Qe3 {[%clk 0:00:20.7]} 25... Ng8 {[%clk
0:00:54.9]} 26. Nc7 {[%clk 0:00:16.9]} 26... Re7 {[%clk 0:00:49.5]} 27. Ne6
{[%clk 0:00:17.1]} 27... Qe8 {[%clk 0:00:49.7]} 28. Rag1 {[%clk 0:00:10.9]}
28... Rh8 {[%clk 0:00:45.6]} 29. Rxe7 {[%clk 0:00:08.7]} 29... Nxe7 {[%clk
0:00:45.4]} 30. b4 {[%clk 0:00:08.9]} 30... b6 {[%clk 0:00:40]} 31. bxc5 {[%clk
0:00:08.7]} 31... dxc5 {[%clk 0:00:40.9]} 32. Rg7 {[%clk 0:00:08.2]} 32... Rg8
{[%clk 0:00:37.2]} 33. d4 {[%clk 0:00:07.6]} 33... cxd4 {[%clk 0:00:34]} 34. Qa3
{[%clk 0:00:07.8]} 34... Rxg7 {[%clk 0:00:29.2]} 35. Nxg7 {[%clk 0:00:08.7]}
35... Qd7 {[%clk 0:00:28.8]} 36. Ne6 {[%clk 0:00:06.9]} 36... d3 {[%clk
0:00:26.1]} 37. Qa6+ {[%clk 0:00:06.3]} 37... Kb8 {[%clk 0:00:26]} 38. c5 {[%clk
0:00:06]} 38... d2 {[%clk 0:00:23.3]} 39. cxb6 {[%clk 0:00:06.4]} 39... d1=Q
{[%clk 0:00:21.2]} 40. bxa7+ {[%clk 0:00:06.9]} 40... Qxa7 {[%clk 0:00:21]} 41.
Qb5+ {[%clk 0:00:07.2]} 41... Qb7 {[%clk 0:00:20.5]} 42. Qe8+ {[%clk 0:00:06.9]}
42... Ka7 {[%clk 0:00:20.5]} 43. Qa4+ {[%clk 0:00:06.6]} 43... Qa6 {[%clk
0:00:20.7]} 44. Qxd1 {[%clk 0:00:05.9]} 44... Qxa2+ {[%clk 0:00:19.5]} 45. Kh1
{[%clk 0:00:05.6]} 45... Qa3 {[%clk 0:00:17]} 46. Qd4+ {[%clk 0:00:05.5]} 46...
Kb7 {[%clk 0:00:15.6]} 47. Nc5+ {[%clk 0:00:05.4]} 47... Kc6 {[%clk 0:00:15.1]}
48. Ne6 {[%clk 0:00:03.6]} 48... Qxh3+ {[%clk 0:00:14.9]} 49. Kg1 {[%clk
0:00:03.7]} 49... Nf3+ {[%clk 0:00:15.8]} 50. Kf2 {[%clk 0:00:03.9]} 50... Nxd4
{[%clk 0:00:16.7]} 51. Ke1 {[%clk 0:00:03.2]} 51... Nxe6 {[%clk 0:00:16.5]} 52.
fxe6 {[%clk 0:00:03.5]} 52... Ng6 {[%clk 0:00:16.8]} 0-1